bitfinex-derivatives/quotes_BTCF0:USTF0_20210703
["timestamp","ask_amount","ask_price","bid_price","bid_amount"]
[1625311603112,4.62231001,34510.0,34508.0,0.17119133]
[1625311603211,4.56331001,34510.0,34508.0,0.17119133]
[1625311603313,4.56331001,34510.0,34509.0,0.00546573]
[1625311603561,1.52110363,34511.0,34509.0,0.00546573]
[1625311604012,3.04252917,34510.0,34509.0,0.00546573]
[1625311604110,3.28310461,34510.0,34509.0,0.00546573]
[1625311605012,3.34210461,34510.0,34509.0,0.00546573]
[1625311605312,3.28310461,34510.0,34509.0,0.00546573]
[1625311605414,3.34210461,34510.0,34509.0,0.00546573]
[1625311605616,3.28310461,34510.0,34509.0,0.00546573]
[1625311607066,3.28310461,34510.0,34509.0,0.518867]
[1625311608820,3.28310461,34510.0,34509.0,0.86109719]
[1625311609320,3.28310461,34510.0,34509.0,0.51882968]
[1625311609869,3.28310461,34510.0,34509.0,0.86107436]
[1625311612725,3.28310461,34510.0,34509.0,0.51881865]
[1625311613631,3.28310461,34510.0,34509.0,0.51879537]
[1625311614533,0.24057544,34510.0,34509.0,0.51879537]
[1625311615033,2.77601595,34510.0,34509.0,0.86100091]
[1625311615133,1.59279911,34510.0,34509.0,0.86100091]
[1625311615283,0.24057544,34510.0,34509.0,0.86100091]
[1625311615586,3.28430406,34510.0,34509.0,0.51879537]
[1625311616189,1.93159214,34510.0,34509.0,0.75937081]
[1625311618490,0.24057544,34510.0,34509.0,0.75938071]
[1625311618991,3.28364897,34510.0,34509.0,0.75938071]
[1625311619543,3.28364897,34510.0,34509.0,0.24604117]
[1625311620146,3.28364897,34510.0,34509.0,0.41715022]
[1625311622799,3.28364897,34510.0,34509.0,0.7593404]
[1625311623100,3.28364897,34510.0,34509.0,0.8183404]
[1625311623352,3.28364897,34510.0,34509.0,0.81832033]
[1625311623751,3.28364897,34510.0,34509.0,0.75932033]
[1625311623851,3.28364897,34510.0,34509.0,0.81832033]
[1625311624052,1.93122819,34510.0,34509.0,0.81832033]
[1625311626508,0.74783888,34510.0,34509.0,0.81832033]
[1625311628762,1.76338137,34510.0,34509.0,1.84481054]
[1625311629270,1.76338137,34510.0,34509.0,1.78581054]
[1625311631571,2.94789154,34510.0,34509.0,1.78581054]
[1625311632727,4.30088252,34510.0,34509.0,0.75933394]
[1625311633328,4.30088252,34510.0,34509.0,0.33158621]
[1625311633827,4.30088252,34510.0,34509.0,0.50267523]
[1625311635833,4.30088252,34510.0,34509.0,1.10145837]
[1625311636485,2.94789154,34510.0,34509.0,0.75929149]
[1625311638392,2.94789154,34510.0,34509.0,0.81829149]
[1625311638692,2.94789154,34510.0,34509.0,1.84475243]
[1625311639294,1.76338137,34510.0,34509.0,2.14303243]
[1625311639394,1.76338137,34510.0,34509.0,2.20203243]
[1625311639796,1.76338137,34510.0,34509.0,3.39950868]
[1625311640346,1.76338137,34510.0,34509.0,3.64008412]
[1625311640497,1.52280593,34510.0,34509.0,3.64008412]
[1625311640598,0.50726344,34510.0,34509.0,3.64008412]
[1625311640898,0.50726344,34510.0,34509.0,3.64866875]
[1625311641047,0.49528498,34513.0,34509.0,6.55651875]
[1625311641347,0.49528498,34513.0,34510.0,0.00546019]
[1625311641499,0.49528498,34513.0,34510.0,0.12346019]
[1625311641749,0.49528498,34513.0,34512.0,4.10514267]
[1625311641849,0.49528498,34513.0,34512.0,4.22314267]
[1625311642153,0.49528498,34513.0,34512.0,4.22860277]
[1625311642252,0.24057544,34513.0,34512.0,4.22860277]
[1625311642701,0.24057544,34513.0,34512.0,4.16960277]
[1625311642851,0.24057544,34513.0,34512.0,4.22860277]
[1625311643000,0.24057544,34513.0,34512.0,4.16960277]
[1625311643153,0.74942734,34513.0,34512.0,4.11060277]
[1625311643301,0.74942734,34513.0,34512.0,4.16960277]
[1625311644655,0.74942734,34513.0,34512.0,4.22860277]
[1625311644752,0.74942734,34513.0,34512.0,4.53203277]
[1625311644852,0.74942734,34513.0,34512.0,4.47303277]
[1625311644952,0.74942734,34513.0,34512.0,4.53203277]
[1625311645803,0.74961126,34513.0,34512.0,4.53203277]
[1625311646705,0.495243,34513.0,34512.0,4.53203277]
[1625311647808,0.32550787,34513.0,34512.0,4.53203277]
[1625311648560,0.24057544,34513.0,34512.0,4.53203277]
[1625311648660,0.24057544,34513.0,34512.0,4.22860277]
[1625311649969,0.24057544,34513.0,34512.0,4.50865277]
[1625311652971,0.83426378,34513.0,34512.0,4.50865277]
[1625311653423,0.74935431,34513.0,34512.0,4.50865277]
[1625311654426,0.74935431,34513.0,34512.0,4.22860277]
[1625311655777,0.94079431,34513.0,34512.0,4.22860277]
[1625311655979,0.94051557,34513.0,34512.0,2.86022188]
[1625311657680,0.74907557,34513.0,34512.0,2.86022188]
[1625311659034,1.42711278,34513.0,34512.0,3.5444797]
[1625311659735,1.65303278,34513.0,34512.0,3.5444797]
[1625311659936,1.65303278,34513.0,34512.0,3.4854797]
[1625311660036,1.65303278,34513.0,34512.0,3.5444797]
[1625311660136,1.65303278,34513.0,34512.0,3.4854797]
[1625311660237,2.66979826,34513.0,34512.0,3.5444797]
[1625311660737,2.66979826,34513.0,34512.0,3.4854797]
[1625311660890,2.66979826,34513.0,34512.0,3.5444797]
[1625311661438,1.65303278,34513.0,34512.0,3.8436797]
[1625311661538,1.42711278,34513.0,34512.0,3.8436797]
[1625311662040,1.08829336,34513.0,34512.0,5.21210898]
[1625311662443,0.74948357,34513.0,34512.0,5.21210898]
[1625311664748,0.83442878,34513.0,34512.0,5.21210898]
[1625311665402,0.59385334,34513.0,34512.0,5.21210898]
[1625311665803,0.2548659,34515.0,34512.0,6.75156621]
[1625311666152,0.2548659,34515.0,34513.0,0.00545987]
[1625311666302,0.2548659,34515.0,34513.0,0.12345987]
[1625311666503,0.2548659,34515.0,34514.0,0.24057544]
[1625311666602,0.2548659,34515.0,34514.0,0.35857544]
[1625311666756,0.2548659,34515.0,34514.0,5.15345952]
[1625311667405,0.59435867,34515.0,34514.0,5.15345952]
[1625311668105,0.2548659,34515.0,34514.0,5.15345952]
[1625311668605,0.59431188,34515.0,34514.0,5.15345952]
[1625311669460,0.2548659,34515.0,34514.0,5.15345952]
[1625311671662,0.59437754,34515.0,34514.0,5.15345952]
[1625311673317,0.59437754,34515.0,34514.0,5.09445952]
[1625311673566,0.59437754,34515.0,34514.0,5.15345952]
[1625311676022,0.50910967,34515.0,34514.0,5.15345952]
[1625311676977,1.18781727,34515.0,34514.0,3.78505262]
[1625311677376,1.18781727,34515.0,34514.0,5.15346343]
[1625311677977,2.20555701,34515.0,34514.0,3.78505262]
[1625311678579,1.18781727,34515.0,34514.0,3.72605262]
[1625311678679,1.18781727,34515.0,34514.0,3.66705262]
[1625311678780,1.18781727,34515.0,34514.0,3.42647718]
[1625311679384,1.18781727,34515.0,34514.0,2.22912114]
[1625311679385,3.39204304,34515.0,34514.0,2.22912114]
[1625311680486,4.74800121,34515.0,34514.0,0.51861252]
[1625311680585,5.22915209,34515.0,34514.0,0.51861252]
[1625311680987,5.22915209,34515.0,34514.0,0.86085542]
[1625311681337,5.22915209,34515.0,34514.0,0.51861252]
[1625311681789,5.22915209,34515.0,34514.0,1.20309228]
[1625311683495,3.87319392,34515.0,34514.0,2.22980826]
[1625311684044,5.22575702,34515.0,34514.0,1.20309228]
[1625311685699,5.22575702,34515.0,34514.0,2.22996549]
[1625311686199,5.22575702,34515.0,34514.0,1.20309228]
[1625311686799,5.22575702,34515.0,34514.0,2.23001886]
[1625311686999,5.22575702,34515.0,34514.0,2.28901886]
[1625311687100,5.22575702,34515.0,34514.0,2.23001886]
[1625311687250,5.22575702,34515.0,34514.0,2.28901886]
[1625311687401,5.22575702,34515.0,34514.0,2.23001886]
[1625311687851,5.22575702,34515.0,34514.0,2.28901886]
[1625311688304,5.22575702,34515.0,34514.0,2.23001886]
[1625311688405,5.22575702,34515.0,34514.0,2.28901886]
[1625311689004,5.22575702,34515.0,34514.0,2.23001886]
[1625311689107,3.87319392,34515.0,34514.0,2.23001886]
[1625311689205,3.87319392,34515.0,34514.0,2.28901886]
[1625311689356,3.87319392,34515.0,34514.0,2.23001886]
[1625311691765,5.22566884,34515.0,34514.0,2.23001886]
[1625311692070,5.22566884,34515.0,34514.0,2.28901886]
[1625311692271,5.22566884,34515.0,34514.0,2.23001886]
[1625311692472,5.22566884,34515.0,34514.0,2.28901886]
[1625311692876,3.87319392,34515.0,34514.0,2.28901886]
[1625311693376,3.87319392,34515.0,34514.0,3.48740174]
[1625311694279,3.87319392,34515.0,34514.0,3.42840174]
[1625311694428,3.87319392,34515.0,34514.0,3.48740174]
[1625311694529,3.87319392,34515.0,34514.0,3.42840174]
[1625311694679,3.87319392,34515.0,34514.0,3.48740174]
[1625311695628,3.87319392,34515.0,34514.0,4.85750408]
[1625311695983,3.87319392,34515.0,34514.0,4.79850408]
[1625311696177,3.87319392,34515.0,34514.0,4.85750408]
[1625311696330,3.87319392,34515.0,34514.0,4.79850408]
[1625311696480,3.87319392,34515.0,34514.0,4.85750408]
[1625311696579,3.87319392,34515.0,34514.0,4.79850408]
[1625311696832,3.87319392,34515.0,34514.0,4.85750408]
[1625311698839,3.87319392,34515.0,34514.0,4.79850408]
[1625311698935,2.68631616,34515.0,34514.0,4.79850408]
[1625311699238,2.68631616,34515.0,34514.0,4.85750408]
[1625311699486,3.8723925,34515.0,34514.0,4.79850408]
[1625311699586,3.8723925,34515.0,34514.0,4.85750408]
[1625311699787,3.8723925,34515.0,34514.0,4.79850408]
[1625311699937,3.8723925,34515.0,34514.0,4.85750408]
[1625311700588,3.8723925,34515.0,34514.0,4.79850408]
[1625311700690,3.8723925,34515.0,34514.0,4.85750408]
[1625311700792,3.8723925,34515.0,34514.0,4.79850408]
[1625311700891,3.8723925,34515.0,34514.0,4.85750408]
[1625311702043,5.22765703,34515.0,34514.0,4.85750408]
[1625311702193,5.22765703,34515.0,34514.0,5.09947408]
[1625311702595,3.8723925,34515.0,34514.0,5.09947408]
[1625311704048,3.8723925,34515.0,34514.0,5.04047408]
[1625311704147,3.8723925,34515.0,34514.0,5.09947408]
[1625311704246,3.8723925,34515.0,34514.0,5.04047408]
[1625311704746,3.8723925,34515.0,34514.0,5.28104952]
[1625311706050,3.8723925,34515.0,34514.0,5.34004952]
[1625311706751,3.8723925,34515.0,34514.0,5.28104952]
[1625311707353,3.8723925,34515.0,34514.0,5.34004952]
[1625311707502,3.8723925,34515.0,34514.0,5.28104952]
[1625311707602,5.22671444,34515.0,34514.0,3.91094718]
[1625311707701,5.22671444,34515.0,34514.0,3.66897718]
[1625311708254,5.22671444,34515.0,34514.0,3.72797718]
[1625311708353,5.22671444,34515.0,34514.0,3.66897718]
[1625311708553,5.22671444,34515.0,34514.0,3.72797718]
[1625311709254,3.8723925,34515.0,34514.0,5.09936747]
[1625311709554,3.8723925,34515.0,34514.0,5.04036747]
[1625311709753,3.8723925,34515.0,34514.0,5.09936747]
[1625311709904,3.8723925,34515.0,34514.0,5.04036747]
[1625311710204,3.8723925,34515.0,34514.0,5.09936747]
[1625311710355,3.8723925,34515.0,34514.0,5.04036747]
[1625311711106,5.22460023,34515.0,34514.0,3.66897718]
[1625311711756,5.28360023,34515.0,34514.0,3.66897718]
[1625311712158,6.80386517,34515.0,34514.0,1.44366772]
[1625311712607,6.80386517,34515.0,34514.0,0.75918796]
[1625311713907,6.80386517,34515.0,34514.0,1.44486853]
[1625311714210,6.80386517,34515.0,34514.0,1.20429309]
[1625311715260,6.80386517,34515.0,34514.0,0.51861252]
[1625311718771,6.74486517,34515.0,34514.0,0.51861252]
[1625311719529,6.80386517,34515.0,34514.0,0.51861252]
[1625311719627,5.28360023,34515.0,34514.0,1.20401653]
[1625311719979,5.28360023,34515.0,34514.0,2.23208198]
[1625311720177,5.22460023,34515.0,34514.0,2.23208198]
[1625311721380,5.22460023,34515.0,34514.0,3.43141]
[1625311721882,3.8723925,34515.0,34514.0,3.43141]
[1625311722584,3.8723925,34515.0,34514.0,3.49041]
[1625311722685,3.8723925,34515.0,34514.0,3.43141]
[1625311723336,3.8723925,34515.0,34514.0,3.49041]
[1625311723587,3.8723925,34515.0,34514.0,3.43141]
[1625311725791,5.22336977,34515.0,34514.0,3.43141]
[1625311726342,3.8723925,34515.0,34514.0,3.43141]
[1625311727043,5.44934375,34515.0,34514.0,3.43141]
[1625311727497,5.44934375,34515.0,34514.0,2.23208198]
[1625311731855,5.50834375,34515.0,34514.0,2.23208198]
[1625311736567,7.02747025,34515.0,34514.0,1.20401653]
[1625311737669,7.02747025,34515.0,34514.0,2.23276025]
[1625311738170,5.50834375,34515.0,34514.0,2.23276025]
[1625311739822,7.03264346,34515.0,34514.0,2.23276025]
[1625311741124,7.03264346,34515.0,34514.0,2.22730032]
[1625311741325,6.97364346,34515.0,34514.0,2.22730032]
[1625311741435,6.50685802,34515.0,34514.0,2.51342032]
[1625311741533,6.50685802,34515.0,34514.0,2.577883]
[1625311741732,1.76487515,34515.0,34514.0,0.35058268]
[1625311742586,3.6290398,34515.0,34514.0,5.15099984]
[1625311742886,3.6290398,34515.0,34514.0,5.39157528]
[1625311744943,3.38846436,34515.0,34514.0,5.39157528]
[1625311745395,3.38846436,34515.0,34514.0,6.93392659]
[1625311745396,1.18606416,34515.0,34514.0,6.93392659]
[1625311748501,1.18606416,34515.0,34514.0,5.39157528]
[1625311750906,0.50833741,34515.0,34514.0,6.933181]
[1625311751256,0.84657127,34515.0,34514.0,6.933181]
[1625311752758,0.5074331,34515.0,34514.0,6.933181]
[1625311753311,0.59211665,34515.0,34514.0,6.933181]
[1625311753861,0.25388279,34515.0,34514.0,6.933181]
[1625311754366,0.50735116,34515.0,34514.0,6.933181]
[1625311758369,0.50735116,34515.0,34514.0,5.39157528]
[1625311759822,0.5069244,34515.0,34514.0,5.39157528]
[1625311761025,1.18269729,34515.0,34514.0,5.39157528]
[1625311773545,1.18269729,34515.0,34514.0,4.92387984]
[1625311773546,1.37647729,34515.0,34514.0,4.92387984]
[1625311773646,1.37647729,34515.0,34514.0,4.86487984]
[1625311773758,1.37647729,34515.0,34514.0,4.80587984]
[1625311773848,1.37647729,34515.0,34514.0,4.86487984]
[1625311774048,2.38966124,34515.0,34514.0,4.80587984]
[1625311774753,3.57085707,34515.0,34514.0,2.23422779]
[1625311775000,4.05200795,34515.0,34514.0,2.23422779]
[1625311775200,5.40163773,34515.0,34514.0,2.23422779]
[1625311775701,5.46063773,34515.0,34514.0,2.23422779]
[1625311776304,5.46063773,34515.0,34514.0,1.54845391]
[1625311776402,5.46063773,34515.0,34514.0,0.51979309]
[1625311776754,5.51963773,34515.0,34514.0,0.51979309]
[1625311776856,5.51963773,34515.0,34514.0,0.86234085]
[1625311776857,5.46063773,34515.0,34514.0,0.86234085]
[1625311777408,5.46063773,34515.0,34514.0,0.51927335]
[1625311778660,6.97709996,34515.0,34514.0,0.26236641]
[1625311781867,5.46063773,34515.0,34514.0,0.60484225]
[1625311781967,5.26685773,34515.0,34514.0,0.87836225]
[1625311782517,3.91722795,34515.0,34514.0,2.50496254]
[1625311785324,5.26150342,34515.0,34514.0,2.50496254]
[1625311785626,4.72135254,34515.0,34514.0,2.62296254]
[1625311786174,3.37707707,34515.0,34514.0,2.62296254]
[1625311786777,0.2528069,34515.0,34514.0,5.19081725]
[1625311787075,0.2528069,34515.0,34514.0,5.67196813]
[1625311787226,0.5897773,34517.0,34514.0,7.21247477]
[1625311787675,0.5897773,34517.0,34515.0,0.0054605]
[1625311787776,0.25288196,34517.0,34516.0,4.79270036]
[1625311787877,0.25288196,34517.0,34516.0,4.85170036]
[1625311788025,0.25288196,34517.0,34516.0,4.91070036]
[1625311788175,0.25288196,34517.0,34516.0,4.91616083]
[1625311788328,0.50506959,34517.0,34516.0,4.91616083]
[1625311788532,0.50506959,34517.0,34516.0,4.85716083]
[1625311788633,1.17827816,34517.0,34516.0,4.85716083]
[1625311789728,2.18761535,34517.0,34516.0,3.54681787]
[1625311790077,2.17931535,34517.0,34516.0,3.54681787]
[1625311790178,2.16831535,34517.0,34516.0,3.54681787]
[1625311790531,0.58978135,34517.0,34516.0,4.91618686]
[1625311790778,0.58978135,34517.0,34516.0,4.85718686]
[1625311790928,0.58978135,34517.0,34516.0,4.91618686]
[1625311791579,0.50543066,34517.0,34516.0,4.91618686]
[1625311792033,0.25287558,34517.0,34516.0,4.91618686]
[1625311792480,0.25287558,34517.0,34516.0,4.85718686]
[1625311792730,0.58977189,34517.0,34516.0,4.85718686]
[1625311793385,0.50542932,34517.0,34516.0,4.85718686]
[1625311793737,0.50542932,34517.0,34516.0,4.91618686]
[1625311793887,0.50542932,34517.0,34516.0,4.85718686]
[1625311794290,0.08437119,34517.0,34516.0,4.85718686]
[1625311794386,0.08437119,34517.0,34516.0,4.79818686]
[1625311794788,0.67338139,34517.0,34516.0,4.79818686]
[1625311795137,0.67338139,34517.0,34516.0,4.85718686]
[1625311795338,1.68314214,34517.0,34516.0,4.85718686]
[1625311795688,1.68314214,34517.0,34516.0,4.79818686]
[1625311796039,1.68314214,34517.0,34516.0,4.85718686]
[1625311796141,1.68314214,34517.0,34516.0,4.91618686]
[1625311796690,0.67363898,34518.0,34516.0,4.91618686]
[1625311797091,0.67363898,34518.0,34517.0,0.12349446]
[1625311797293,1.01037428,34519.0,34517.0,4.40389403]
[1625311797542,1.01037428,34519.0,34518.0,0.00549446]
[1625311797641,1.17874193,34520.0,34518.0,2.91615629]
[1625311797742,1.17874193,34520.0,34518.0,2.97515629]
[1625311798092,1.17874193,34520.0,34519.0,2.91617054]
[1625311798192,1.17874193,34520.0,34519.0,2.97517054]
[1625311798695,2.86264358,34520.0,34519.0,2.97517054]
[1625311799143,2.86264358,34520.0,34519.0,3.21574598]
[1625311800296,2.86264358,34520.0,34519.0,3.15674598]
[1625311801447,2.86264358,34520.0,34519.0,3.21574598]
[1625311801547,2.86264358,34520.0,34519.0,3.27474598]
[1625311802152,1.68390165,34520.0,34519.0,4.64452133]
[1625311803556,0.24057544,34522.0,34519.0,0.36406987]
[1625311803905,0.24057544,34522.0,34520.0,0.00549415]
[1625311804053,0.24057544,34522.0,34520.0,0.12349415]
[1625311804156,1.51567764,34527.0,34520.0,0.43860415]
[1625311804305,1.17879824,34522.0,34521.0,2.80757163]
[1625311804405,1.08679824,34522.0,34521.0,2.92557163]
[1625311804506,1.08679824,34522.0,34521.0,2.93106506]
[1625311804805,1.07809824,34522.0,34521.0,2.93106506]
[1625311804906,0.70719824,34522.0,34521.0,2.93106506]
[1625311805105,0.05237217,34523.0,34521.0,2.93106506]
[1625311805256,0.08449343,34522.0,34521.0,4.95296019]
[1625311805355,0.07384637,34524.0,34521.0,4.95296019]
[1625311805558,0.07384637,34524.0,34522.0,0.00549272]
[1625311805706,0.07384637,34524.0,34522.0,0.12349272]
[1625311805957,1.51920158,34537.0,34524.0,0.057]
[1625311806155,1.51920158,34537.0,34524.0,0.116]
[1625311806356,1.51920158,34537.0,34525.0,0.00549255]
[1625311806458,1.51785201,34539.0,34526.0,1.59633555]
[1625311806557,1.51785201,34539.0,34526.0,1.65533555]
[1625311806657,1.51785201,34539.0,34526.0,1.71433555]
[1625311806806,1.51785201,34539.0,34527.0,0.00549257]
[1625311806907,1.51785201,34539.0,34527.0,0.25991257]
[1625311807008,1.51785201,34539.0,34527.0,0.37591257]
[1625311807209,1.51785201,34539.0,34538.0,0.48115088]
[1625311807309,1.51785201,34539.0,34538.0,0.69347088]
[1625311808110,1.75546535,34540.0,34538.0,0.69347088]
[1625311813823,0.24057544,34540.0,34538.0,0.69347088]
[1625311819287,0.29957544,34540.0,34538.0,0.69347088]
[1625311819389,0.29957544,34540.0,34538.0,0.48115088]
[1625311820094,0.67231544,34540.0,34538.0,0.48115088]
[1625311820192,0.67231544,34540.0,34535.0,0.24057544]
[1625311820542,2.18290978,34540.0,34535.0,0.24057544]
[1625311820643,1.34276918,34539.0,34535.0,0.24057544]
[1625311820743,1.46076918,34539.0,34535.0,0.24057544]
[1625311821096,1.34196378,34536.0,34535.0,0.24057544]
[1625311821194,1.45996378,34536.0,34535.0,0.24057544]
[1625311821294,1.70053922,34536.0,34535.0,0.24057544]
[1625311821544,1.64153922,34536.0,34535.0,0.24057544]
[1625311821644,1.70053922,34536.0,34535.0,0.24057544]
[1625311823900,1.64153922,34536.0,34535.0,0.24057544]
[1625311824451,1.70053922,34536.0,34535.0,0.24057544]
[1625311824549,1.98610922,34536.0,34535.0,0.24057544]
[1625311825754,3.16021075,34536.0,34535.0,0.24057544]
[1625311826805,0.64414544,34536.0,34535.0,0.24057544]
[1625311826906,0.35857544,34536.0,34535.0,0.24057544]
[1625311827357,2.87715481,34536.0,34535.0,0.24057544]
[1625311827456,2.81815481,34536.0,34535.0,0.24057544]
[1625311828011,2.81815481,34536.0,34535.0,0.24607331]
[1625311828266,2.87715481,34536.0,34535.0,0.24607331]
[1625311829060,2.87715481,34536.0,34535.0,0.24057544]
[1625311829161,2.75915481,34536.0,34535.0,0.24057544]
[1625311829361,2.75915481,34536.0,34535.0,0.24607555]
[1625311831619,1.41592367,34536.0,34535.0,0.24607555]
[1625311832518,1.67531138,34536.0,34535.0,0.24607555]
[1625311832616,1.73431138,34536.0,34535.0,0.24607555]
[1625311832717,3.07649643,34536.0,34535.0,0.24607555]
[1625311834622,4.0826887,34536.0,34535.0,0.24607555]
[1625311835926,4.07069099,34536.0,34535.0,0.24607555]
[1625311836224,4.08268848,34536.0,34535.0,0.24607555]
[1625311836475,4.07069099,34536.0,34535.0,0.24607555]
[1625311836977,4.08268832,34536.0,34535.0,0.24607555]
[1625311837279,4.07069099,34536.0,34535.0,0.24607555]
[1625311837778,4.0826883,34536.0,34535.0,0.24607555]
[1625311839734,4.0236883,34536.0,34535.0,0.24607555]
[1625311839983,4.01169099,34536.0,34535.0,0.24607555]
[1625311840693,4.07069099,34536.0,34535.0,0.24607555]
[1625311840794,4.08268831,34536.0,34535.0,0.24607555]
[1625311850265,5.59643189,34536.0,34535.0,0.24607555]
[1625311852221,5.59643189,34536.0,34535.0,0.00550011]
[1625311852321,5.65543189,34536.0,34535.0,0.00550011]
[1625311852420,5.65543189,34536.0,34528.0,1.02630327]
[1625311852519,5.65543189,34536.0,34526.0,1.02639667]
[1625311852773,5.65543189,34536.0,34529.0,0.00552625]
[1625311852971,1.67734549,34531.0,34527.0,0.00551789]
[1625311853169,1.79534549,34531.0,34527.0,0.00551789]
[1625311853270,1.79534549,34531.0,34530.0,0.00551808]
[1625311853472,2.52902614,34531.0,34524.0,0.00551818]
[1625311853571,5.03329953,34528.0,34524.0,0.00551818]
[1625311853673,5.27578953,34528.0,34524.0,0.00551818]
[1625311853823,5.39378953,34528.0,34524.0,0.00551818]
[1625311853971,0.01195444,34527.0,34524.0,0.00551818]
[1625311854224,3.52192374,34525.0,34524.0,0.00551818]
[1625311854421,3.63992374,34525.0,34524.0,0.00551818]
[1625311855321,5.14971276,34525.0,34524.0,0.00551818]
[1625311855471,5.3902882,34525.0,34524.0,0.00551818]
[1625311856122,3.88049918,34525.0,34524.0,0.00551818]
[1625311856724,3.82149918,34525.0,34524.0,0.00551818]
[1625311857078,3.88049918,34525.0,34524.0,0.00551818]
[1625311857226,5.33119547,34525.0,34524.0,0.00551818]
[1625311857329,5.39019547,34525.0,34524.0,0.00551818]
[1625311857677,5.33119547,34525.0,34524.0,0.00551818]
[1625311857877,5.39019547,34525.0,34524.0,0.00551818]
[1625311858077,3.88049918,34525.0,34524.0,0.00551818]
[1625311858729,3.82149918,34525.0,34524.0,0.00551818]
[1625311858881,3.88049918,34525.0,34524.0,0.00551818]
[1625311858980,3.82149918,34525.0,34524.0,0.00551818]
[1625311859080,3.88049918,34525.0,34524.0,0.00551818]
[1625311859181,3.82149918,34525.0,34524.0,0.00551818]
[1625311859482,3.88049918,34525.0,34524.0,0.00551818]
[1625311859835,3.82149918,34525.0,34524.0,0.00551818]
[1625311860134,3.88049918,34525.0,34524.0,0.00551818]
[1625311865545,4.5510238,34525.0,34524.0,0.00551818]
[1625311865997,4.5510238,34525.0,34523.0,0.24057544]
[1625311866897,4.18872604,34524.0,34523.0,0.24057544]
[1625311867147,4.24772604,34524.0,34523.0,0.24057544]
[1625311867296,4.24772604,34524.0,34523.0,0.24609357]
[1625311867898,0.72925647,34524.0,34523.0,0.24609357]
[1625311868148,4.24791308,34524.0,34523.0,0.24609357]
[1625311870053,4.24791308,34524.0,34523.0,0.24057544]
[1625311872557,5.75454139,34524.0,34523.0,0.24057544]
[1625311875557,5.75454139,34524.0,34515.0,0.68357981]
[1625311875908,5.81354139,34524.0,34515.0,0.68357981]
[1625311876009,5.81354139,34524.0,34514.0,0.92415907]
[1625311876158,5.81354139,34524.0,34516.0,0.00551577]
[1625311876358,5.81354139,34524.0,34515.0,0.00551594]
[1625311876608,1.16921989,34516.0,34513.0,0.68362997]
[1625311876708,1.36369989,34516.0,34513.0,0.68362997]
[1625311876808,1.42269989,34516.0,34513.0,0.68362997]
[1625311876957,1.42269989,34516.0,34514.0,0.00551611]
[1625311877363,1.5884497,34516.0,34514.0,0.00551611]
[1625311877611,4.65242165,34515.0,34514.0,0.00551611]
[1625311877710,4.65242165,34515.0,34512.0,0.0055163]
[1625311877812,4.71142165,34515.0,34512.0,0.0055163]
[1625311877962,0.54015088,34515.0,34514.0,0.0055163]
[1625311878261,0.54015088,34515.0,34513.0,0.00551635]
[1625311878461,0.54015088,34515.0,34512.0,0.00551635]
[1625311878563,4.71082748,34515.0,34512.0,0.00551635]
[1625311879063,1.66751034,34513.0,34512.0,0.00551635]
[1625311879164,1.72651034,34513.0,34512.0,0.00551635]
[1625311879814,2.89357314,34513.0,34512.0,0.00551635]
[1625311880919,3.39368075,34513.0,34512.0,0.00551635]
[1625311882169,2.22661795,34513.0,34512.0,0.00551635]
[1625311889488,2.28561795,34513.0,34512.0,0.00551635]
[1625311889838,3.4538679,34513.0,34512.0,0.00551635]
[1625311890895,3.4538679,34513.0,34506.0,0.51171]
[1625311891094,3.7474479,34513.0,34506.0,0.51171]
[1625311891244,3.7474479,34513.0,34508.0,0.00551032]
[1625311891496,0.50067716,34509.0,34507.0,0.00551027]
[1625311891744,0.48115088,34508.0,34505.0,1.19392999]
[1625311891844,0.54015088,34508.0,34505.0,1.19392999]
[1625311891946,0.54015088,34508.0,34507.0,0.00551037]
[1625311892095,1.70776609,34508.0,34507.0,0.00551037]
[1625311892244,1.04058122,34508.0,34506.0,0.0055104]
[1625311892544,2.708313,34508.0,34507.0,0.0055105]
[1625311892745,2.708313,34508.0,34504.0,0.0055105]
[1625311892844,1.70770728,34508.0,34504.0,0.0055105]
[1625311892944,1.04058122,34508.0,34504.0,0.0055105]
[1625311893346,0.50024536,34507.0,34503.0,0.00551043]
[1625311893497,0.55924536,34507.0,34503.0,0.00551043]
[1625311893746,0.24057544,34504.0,34503.0,0.00551043]
[1625311893846,0.29957544,34504.0,34503.0,0.00551043]
[1625311894047,0.29957544,34504.0,34503.0,0.51709473]
[1625311895150,0.29957544,34504.0,34503.0,0.00551043]
[1625311898959,0.29957544,34504.0,34503.0,0.27605043]
[1625311900660,0.29957544,34504.0,34503.0,0.00551043]
[1625311902469,0.79955286,34504.0,34503.0,0.00551043]
[1625311903569,0.79955286,34504.0,34500.0,0.00551111]
[1625311903721,2.4643805,34504.0,34500.0,0.00551111]
[1625311903821,0.51940544,34501.0,34498.0,0.24057544]
[1625311904025,0.57840544,34501.0,34498.0,0.24057544]
[1625311904124,0.57840544,34501.0,34500.0,0.00551111]
[1625311904324,0.57840544,34501.0,34499.0,0.00551114]
[1625311905779,0.81898088,34501.0,34499.0,0.00551114]
[1625311906731,0.81898088,34501.0,34498.0,0.24057544]
[1625311906981,0.81898088,34501.0,34499.0,0.00551166]
[1625311907280,1.31829487,34501.0,34499.0,0.00551166]
[1625311907781,1.37729487,34501.0,34499.0,0.00551166]
[1625311908531,0.49975926,34500.0,34499.0,0.00551166]
[1625311908733,0.55875926,34500.0,34499.0,0.00551166]
[1625311908882,0.55875926,34500.0,34496.0,0.00550637]
[1625311909487,0.87234926,34500.0,34496.0,0.00550637]
[1625311909586,0.37259,34500.0,34496.0,0.51709167]
[1625311909787,0.24057544,34497.0,34496.0,0.51709167]
[1625311909887,0.29957544,34497.0,34496.0,0.51709167]
[1625311909988,0.29957544,34497.0,34496.0,0.5115853]
[1625311910339,0.29957544,34497.0,34496.0,0.00550634]
[1625311913148,0.35857544,34497.0,34496.0,0.00550634]
[1625311913349,0.35857544,34497.0,34492.0,0.22326202]
[1625311913448,0.35857544,34497.0,34486.0,0.24057544]
[1625311913449,2.02182835,34497.0,34488.0,2.38864783]
[1625311913549,2.52087074,34497.0,34490.0,0.51187601]
[1625311913749,2.52087074,34497.0,34491.0,0.00549903]
[1625311914049,1.41755435,34493.0,34491.0,0.00549903]
[1625311914149,1.47655435,34493.0,34491.0,0.00549903]
[1625311914249,1.53555435,34493.0,34487.0,0.00549921]
[1625311914353,0.49846392,34492.0,34487.0,0.00549921]
[1625311914651,0.55746392,34492.0,34487.0,0.00549921]
[1625311914801,0.49814387,34490.0,34487.0,0.00549921]
[1625311915050,0.55714387,34490.0,34487.0,0.00549921]
[1625311915803,0.48115088,34488.0,34487.0,0.00549921]
[1625311916052,0.54015088,34488.0,34487.0,0.00549921]
[1625311918807,0.54015088,34488.0,34486.0,0.24057544]
[1625311919007,0.54015088,34488.0,34487.0,0.00549912]
[1625311919557,0.54015088,34488.0,34483.0,0.00549918]
[1625311919807,0.48115088,34484.0,34483.0,0.00549918]
[1625311919909,0.74343088,34484.0,34483.0,0.00549918]
[1625311920007,0.80243088,34484.0,34483.0,0.00549918]
[1625311920407,0.80243088,34484.0,34482.0,0.00549911]
[1625311920610,0.80243088,34484.0,34483.0,0.00549923]